bitfinex-derivatives/quotes_BTCF0:USTF0_20241213
["timestamp","ask_amount","ask_price","bid_price","bid_amount"]
[1734110024901,0.10054682,101110.0,101100.0,1.13434213]
[1734110025200,0.10054682,101110.0,101100.0,1.42521696]
[1734110025603,0.01165901,101110.0,101100.0,1.61914906]
[1734110025798,0.61765879,101120.0,101100.0,1.61914906]
[1734110025987,0.61765879,101120.0,101110.0,0.22456902]
[1734110026392,0.64833305,101120.0,101110.0,0.22456902]
[1734110026800,0.55944524,101120.0,101110.0,0.22456902]
[1734110028104,0.70760554,101120.0,101110.0,0.22656902]
[1734110028405,0.70760554,101120.0,101110.0,0.22856902]
[1734110029895,0.55944524,101120.0,101110.0,0.22856902]
[1734110031297,0.65362951,101120.0,101110.0,0.22856902]
[1734110031701,0.80178981,101120.0,101110.0,0.22856902]
[1734110032003,0.68326883,101120.0,101110.0,0.004]
[1734110032198,0.77656883,101120.0,101110.0,0.004]
[1734110032996,0.80565828,101120.0,101110.0,0.004]
[1734110033609,0.92840853,101120.0,101110.0,0.004]
[1734110033804,1.13519991,101120.0,101110.0,0.004]
[1734110034202,0.049453,101110.0,101100.0,0.0741847]
[1734110034399,0.82525928,101110.0,101100.0,0.0741847]
[1734110034701,0.73607983,101110.0,101100.0,0.1236427]
[1734110034895,0.35096224,101110.0,101100.0,0.6756427]
[1734110035096,0.35096224,101110.0,101100.0,0.85075872]
[1734110035604,0.35096224,101110.0,101100.0,0.85675872]
[1734110035907,0.35096224,101110.0,101100.0,0.86075872]
[1734110036705,0.41021188,101110.0,101100.0,0.3248427]
[1734110036912,0.77101188,101110.0,101100.0,0.2262427]
[1734110037908,0.77101188,101110.0,101100.0,0.1336427]
[1734110038210,0.65253706,101110.0,101100.0,0.1336427]
[1734110038412,0.65253706,101110.0,101100.0,0.0841847]
[1734110038709,0.77100929,101110.0,101100.0,0.1336427]
[1734110039708,0.65253706,101110.0,101100.0,0.30875872]
[1734110039904,0.65253706,101110.0,101100.0,0.25930072]
[1734110040105,0.65253706,101110.0,101100.0,0.0841847]
[1734110040106,0.74783706,101110.0,101100.0,0.0841847]
[1734110041308,0.77746431,101110.0,101100.0,0.0841847]
[1734110042007,0.89973727,101110.0,101100.0,0.06300976]
[1734110042407,1.07742036,101110.0,101100.0,0.06300976]
[1734110043517,1.17160463,101110.0,101100.0,0.06300976]
[1734110043908,1.07742036,101110.0,101100.0,0.06300976]
[1734110044314,1.07742036,101110.0,101080.0,0.32716685]
[1734110044315,0.049463,101090.0,101080.0,0.0005]
[1734110044510,0.049468,101080.0,101070.0,0.141272]
[1734110044813,0.71170547,101080.0,101070.0,0.141272]
[1734110045604,0.1184304,101080.0,101070.0,0.59625627]
[1734110045808,0.20721837,101080.0,101070.0,0.59625627]
[1734110046011,0.20721837,101090.0,101080.0,0.049468]
[1734110046208,0.20721837,101090.0,101080.0,0.70035227]
[1734110046209,0.08878797,101090.0,101080.0,0.70035227]
[1734110046607,0.08878797,101100.0,101090.0,0.049463]
[1734110046809,0.08878797,101100.0,101090.0,0.147263]
[1734110047205,0.08878797,101100.0,101090.0,0.508063]
[1734110047415,0.61895788,101110.0,101100.0,0.049458]
[1734110047708,0.61891943,101110.0,101100.0,0.142858]
[1734110048311,0.25811943,101110.0,101100.0,0.142858]
[1734110048809,0.25911943,101110.0,101100.0,0.142858]
[1734110049916,0.26211943,101110.0,101100.0,0.142858]
[1734110050313,0.21266443,101110.0,101100.0,0.142858]
[1734110050516,0.09423403,101110.0,101100.0,0.503658]
[1734110050708,0.00548451,101110.0,101100.0,0.503658]
[1734110051316,0.00548451,101110.0,101100.0,0.77295829]
[1734110052220,0.00448451,101110.0,101100.0,0.77495829]
[1734110053020,0.00148451,101110.0,101100.0,0.77595829]
[1734110054114,0.00148451,101110.0,101100.0,0.68177402]
[1734110057321,0.09023403,101110.0,101100.0,0.68177402]
[1734110057912,0.00148451,101110.0,101100.0,1.00865815]
[1734110059825,0.00148451,101110.0,101100.0,0.77595829]
[1734110060021,0.09023403,101110.0,101100.0,0.77595829]
[1734110061024,0.00148451,101110.0,101100.0,0.77595829]
[1734110061527,0.00148451,101110.0,101100.0,1.00865815]
[1734110061720,0.00148451,101110.0,101100.0,0.77595829]
[1734110063025,0.09023403,101110.0,101100.0,0.77595829]
[1734110063621,0.09023403,101110.0,101100.0,0.68177402]
[1734110063822,0.00148451,101110.0,101100.0,0.68177402]
[1734110064527,0.00148451,101110.0,101100.0,0.91447388]
[1734110064929,0.00148451,101110.0,101100.0,0.68177402]
[1734110065127,0.00148451,101110.0,101100.0,1.88177402]
[1734110068629,0.00148451,101110.0,101100.0,0.68177402]
[1734110069134,0.00148451,101110.0,101100.0,1.97595829]
[1734110070136,0.20717992,101130.0,101100.0,2.4277264]
[1734110070320,0.08874952,101140.0,101130.0,0.049443]
[1734110070629,0.20866375,101150.0,101130.0,0.50442727]
[1734110070834,0.09023335,101150.0,101140.0,0.50442227]
[1734110071018,0.00148383,101150.0,101140.0,0.50442227]
[1734110072334,0.25313108,101160.0,101140.0,0.50442227]
[1734110072538,0.00877387,101150.0,101140.0,0.50442227]
[1734110072827,0.26439583,101160.0,101150.0,0.049434]
[1734110073923,0.049434,101150.0,101140.0,0.049437]
[1734110074236,0.61685884,101150.0,101140.0,0.049437]
[1734110074830,0.61735884,101150.0,101140.0,0.049437]
[1734110075734,0.61835884,101150.0,101140.0,0.050437]
[1734110076534,0.62135884,101150.0,101140.0,0.050437]
[1734110077929,0.62135884,101150.0,101140.0,0.001]
[1734110078137,0.71554311,101150.0,101140.0,0.001]
[1734110078633,0.6808419,101150.0,101140.0,0.001]
[1734110078834,0.83459967,101150.0,101140.0,0.001]
[1734110079330,0.65695527,101150.0,101140.0,0.001]
[1734110080328,0.83459967,101150.0,101140.0,0.001]
[1734110080729,0.65695527,101150.0,101140.0,0.001]
[1734110080933,0.68656267,101150.0,101140.0,0.001]
[1734110081137,0.83432722,101150.0,101140.0,0.001]
[1734110083039,0.65668282,101150.0,101140.0,0.050438]
[1734110084838,0.56249855,101150.0,101140.0,0.050438]
[1734110085041,0.68071986,101150.0,101140.0,0.050438]
[1734110085434,0.62162152,101150.0,101140.0,0.050438]
[1734110085937,0.62112152,101150.0,101140.0,0.050438]
[1734110087537,0.71530579,101150.0,101140.0,0.050438]
[1734110088542,0.62112152,101150.0,101140.0,0.050438]
[1734110088742,0.71530579,101150.0,101140.0,0.050438]
[1734110089042,0.80980579,101150.0,101140.0,0.050438]
[1734110090043,0.62695531,101150.0,101140.0,0.050438]
[1734110090632,0.71563913,101150.0,101140.0,0.050438]
[1734110090839,0.59741782,101150.0,101140.0,0.050438]
[1734110091138,0.50291782,101150.0,101140.0,0.050438]
[1734110091833,0.14211782,101150.0,101140.0,0.050438]
[1734110092235,0.21090513,101150.0,101140.0,0.50542227]
[1734110092438,0.09268382,101150.0,101140.0,0.50542227]
[1734110093544,0.09268382,101150.0,101140.0,0.411238]
[1734110094150,0.14211782,101150.0,101140.0,0.411238]
[1734110094645,0.053434,101150.0,101140.0,0.411238]
[1734110095847,0.14211782,101150.0,101140.0,0.411238]
[1734110096351,0.14211782,101150.0,101140.0,0.58551116]
[1734110096549,0.09268382,101150.0,101140.0,0.58551116]
[1734110096746,0.004,101150.0,101140.0,0.67969543]
[1734110096950,0.004,101150.0,101140.0,1.28089543]
[1734110097245,0.004,101150.0,101140.0,1.51325965]
[1734110097646,0.01126475,101160.0,101140.0,3.01325965]
[1734110097844,0.08918382,101170.0,101150.0,1.10726811]
[1734110098152,0.08918382,101170.0,101160.0,0.50441327]
[1734110098539,0.0005,101170.0,101160.0,0.50441327]
[1734110098747,0.08918382,101170.0,101160.0,0.50441327]
[1734110099251,0.0005,101170.0,101160.0,0.50441327]
[1734110099843,0.08868382,101170.0,101160.0,0.50441327]
[1734110100044,0.0998914,101170.0,101160.0,0.50441327]
[1734110100853,0.01220758,101170.0,101160.0,0.50441327]
[1734110102751,0.001,101170.0,101160.0,0.89859754]
[1734110102950,0.001,101170.0,101160.0,1.66818316]
[1734110103457,0.0005,101180.0,101170.0,0.049424]
[1734110103748,0.0005,101180.0,101170.0,0.87819389]
[1734110103939,0.01091885,101190.0,101180.0,0.049419]
[1734110104147,0.18868382,101200.0,101180.0,0.60260327]
[1734110104449,0.1,101200.0,101190.0,0.50439827]
[1734110105452,0.103,101200.0,101190.0,0.50439827]
[1734110105751,0.104,101200.0,101190.0,0.50539827]
[1734110106354,0.153409,101200.0,101190.0,0.411214]
[1734110106547,0.153409,101200.0,101190.0,0.050414]
[1734110106747,0.104,101200.0,101190.0,0.411214]
[1734110106948,0.104,101200.0,101190.0,0.50539827]
[1734110107563,0.104,101200.0,101190.0,1.00539827]
[1734110107748,0.11498203,101200.0,101190.0,1.00539827]
[1734110108451,0.11198203,101200.0,101190.0,1.00539827]
[1734110108649,0.11398203,101200.0,101190.0,1.00539827]
[1734110109051,0.11398203,101200.0,101190.0,0.69749827]
[1734110109559,0.11398203,101200.0,101190.0,1.19749827]
[1734110110056,0.11298203,101200.0,101190.0,1.19749827]
[1734110110255,0.102,101200.0,101190.0,1.19749827]
[1734110110656,0.102,101200.0,101190.0,1.95696254]
[1734110111256,0.102,101200.0,101190.0,3.15696254]
[1734110111459,0.102,101200.0,101190.0,2.85696254]
[1734110111659,0.102,101200.0,101190.0,1.468594]
[1734110111845,0.102,101200.0,101190.0,0.968594]
[1734110112253,0.24559327,101200.0,101190.0,0.607794]
[1734110112451,0.24559327,101200.0,101190.0,0.415694]
[1734110112960,0.151409,101200.0,101190.0,0.415694]
[1734110113364,0.151409,101200.0,101190.0,0.050414]
[1734110113557,0.512209,101200.0,101190.0,0.050414]
[1734110113755,0.60639327,101200.0,101190.0,0.001]
[1734110113951,0.512709,101200.0,101190.0,0.050414]
[1734110114358,0.512709,101200.0,101190.0,0.001]
[1734110114555,0.60689327,101200.0,101190.0,0.001]
[1734110114952,0.60639327,101200.0,101190.0,0.001]
[1734110115154,0.102,101200.0,101190.0,0.96038254]
[1734110115359,0.102,101200.0,101190.0,1.06228254]
[1734110115548,0.102,101200.0,101190.0,1.66158254]
[1734110115753,0.102,101200.0,101190.0,1.75918254]
[1734110115953,0.1025,101200.0,101190.0,1.66499827]
[1734110116154,0.1025,101200.0,101190.0,1.570814]
[1734110116362,0.1025,101200.0,101190.0,1.070814]
[1734110116856,0.1,101200.0,101190.0,0.612414]
[1734110117061,0.103,101200.0,101190.0,0.152314]
[1734110117650,0.1,101200.0,101190.0,0.513114]
[1734110117864,0.1005,101200.0,101190.0,0.513114]
[1734110118058,0.1025,101200.0,101190.0,0.512114]
[1734110118460,0.1025,101200.0,101190.0,0.60629827]
[1734110118661,0.1025,101200.0,101190.0,0.512114]
[1734110119162,0.151909,101200.0,101190.0,0.410214]
[1734110119360,0.151909,101200.0,101190.0,0.049414]
[1734110119557,0.341009,101200.0,101190.0,0.049414]
[1734110120065,0.340509,101200.0,101190.0,0.049414]
[1734110120260,0.79549327,101200.0,101190.0,0.049414]
[1734110120667,0.43469327,101200.0,101190.0,0.049414]
[1734110120869,0.60639327,101200.0,101190.0,0.049414]
[1734110121058,0.512209,101200.0,101190.0,0.049414]
[1734110122362,0.60639327,101200.0,101190.0,0.049414]
[1734110123865,0.69507709,101200.0,101190.0,0.049414]
[1734110124063,0.60089282,101200.0,101190.0,0.049414]
[1734110125367,0.71911413,101200.0,101190.0,0.049414]
[1734110126470,0.71902566,101200.0,101190.0,0.049414]
[1734110127365,0.71906021,101200.0,101190.0,0.049414]
[1734110129566,0.63043031,101200.0,101190.0,0.049414]
[1734110130275,0.71911675,101200.0,101190.0,0.049414]
[1734110130476,0.63043031,101200.0,101190.0,0.049414]
[1734110131473,0.77819486,101200.0,101190.0,0.049414]
[1734110132463,0.049419,101190.0,101170.0,0.64906984]
[1734110132767,0.049424,101170.0,101160.0,0.22351062]
[1734110132972,0.13818925,101170.0,101160.0,0.22401062]
[1734110133163,0.61734295,101170.0,101160.0,0.049925]
[1734110133962,0.61734295,101170.0,101160.0,0.049425]
[1734110134967,0.61734295,101170.0,101160.0,0.049925]
[1734110135359,0.71894295,101170.0,101160.0,0.055925]
[1734110135863,0.71894295,101170.0,101160.0,0.055425]
[1734110136061,0.71894295,101170.0,101160.0,0.064425]
[1734110136062,0.71994295,101170.0,101160.0,0.064425]
[1734110136273,0.35914295,101170.0,101160.0,0.425225]
[1734110136471,0.002,101170.0,101160.0,0.51940927]
[1734110136772,0.002,101170.0,101160.0,1.29349489]
[1734110136974,0.002,101170.0,101160.0,1.52635911]
[1734110137362,0.002,101170.0,101160.0,1.62054338]
[1734110137567,0.45572895,101200.0,101190.0,0.049414]
[1734110137767,0.46693697,101200.0,101190.0,0.049414]
[1734110137971,0.56112124,101200.0,101190.0,0.049414]
[1734110138280,0.44276754,101200.0,101190.0,0.049414]
[1734110138570,0.92192124,101200.0,101190.0,0.049414]
[1734110138769,0.92392124,101200.0,101190.0,0.049414]
[1734110138968,0.049414,101190.0,101180.0,0.509817]
[1734110139169,0.49882831,101190.0,101180.0,0.149017]
[1734110139471,0.59301258,101190.0,101180.0,0.049417]
[1734110139669,0.049424,101180.0,101170.0,0.049423]
[1734110139863,0.23224095,101180.0,101170.0,0.049423]
[1734110140181,0.13805668,101180.0,101170.0,0.410223]
[1734110140571,0.13805668,101180.0,101170.0,0.049423]
[1734110140976,0.35059465,101180.0,101170.0,0.049423]
[1734110141177,0.44779465,101180.0,101170.0,0.049423]
[1734110141474,0.80859465,101180.0,101170.0,0.049423]
[1734110141668,0.44779465,101180.0,101170.0,0.049423]
[1734110141867,0.80859465,101180.0,101170.0,0.053423]
[1734110142475,0.80859465,101180.0,101170.0,0.059423]
[1734110144269,0.80861904,101180.0,101170.0,0.059423]
[1734110145177,0.8086102,101180.0,101170.0,0.059423]
[1734110145578,0.80862232,101180.0,101170.0,0.059423]
[1734110145976,0.80862203,101180.0,101170.0,0.059423]
[1734110146283,0.44782203,101180.0,101170.0,0.059423]
[1734110146480,0.80862203,101180.0,101170.0,0.059423]
[1734110146781,0.73107822,101180.0,101170.0,0.059423]
[1734110146979,0.87884277,101180.0,101170.0,0.01]
[1734110147771,0.76048907,101180.0,101170.0,0.01]
[1734110147974,0.76048907,101180.0,101170.0,0.059424]
[1734110148171,0.87872716,101180.0,101170.0,0.059424]
[1734110148569,0.73096261,101180.0,101170.0,0.059424]
[1734110148868,0.87872716,101180.0,101170.0,0.059424]
[1734110150987,0.87872716,101180.0,101170.0,0.01]
[1734110151290,0.049429,101160.0,101140.0,0.22506444]
[1734110151473,0.68692541,101150.0,101140.0,0.00148255]
[1734110151676,0.68692541,101150.0,101130.0,0.142042]
[1734110151677,0.049438,101140.0,101130.0,0.142042]
[1734110151878,0.23230642,101140.0,101130.0,0.142042]
[1734110152285,0.14362227,101140.0,101130.0,0.142042]
[1734110152979,0.50442227,101140.0,101130.0,0.142042]
[1734110153375,0.59410642,101140.0,101130.0,0.017]
[1734110153579,0.71238261,101140.0,101130.0,0.066443]
[1734110154685,0.59410642,101140.0,101130.0,0.066443]
[1734110155987,0.60511212,101140.0,101130.0,0.066443]
[1734110156994,0.60511212,101140.0,101130.0,0.017]
[1734110159987,0.60511212,101140.0,101130.0,0.0175]
[1734110160985,0.60511212,101140.0,101130.0,0.017]
[1734110162097,0.60511212,101140.0,101130.0,0.0175]
[1734110162896,0.51642797,101140.0,101130.0,0.0175]
[1734110163190,0.049448,101120.0,101110.0,0.501451]
[1734110163396,0.14363227,101120.0,101110.0,0.501451]
[1734110163696,0.410245,101130.0,101120.0,0.049448]
[1734110163887,0.049445,101130.0,101120.0,0.049448]
[1734110164801,0.44151647,101140.0,101130.0,0.049443]
[1734110165095,0.53570074,101140.0,101130.0,0.049943]
[1734110165791,0.53570074,101140.0,101130.0,0.0005]
[1734110165987,0.72038489,101140.0,101130.0,0.0005]
[1734110167393,0.72938489,101140.0,101130.0,0.0005]
[1734110167595,0.049448,101120.0,101110.0,0.14065]
[1734110167796,0.50443227,101120.0,101110.0,0.0912]
[1734110168093,0.049453,101110.0,101100.0,0.24713816]
[1734110168298,0.14363727,101110.0,101100.0,0.05103816]
[1734110168486,0.50443727,101110.0,101100.0,0.05103816]
[1734110169487,0.50443727,101110.0,101100.0,0.00148357]
[1734110169693,0.049458,101100.0,101090.0,0.04946]
[1734110169996,0.50444227,101100.0,101090.0,0.04946]
[1734110170700,0.50444227,101100.0,101080.0,1.540565]
[1734110170701,0.049463,101090.0,101080.0,1.540565]
[1734110170993,0.14364727,101090.0,101080.0,1.540565]
[1734110171591,0.14364727,101090.0,101080.0,0.340565]
[1734110171791,0.14364727,101090.0,101080.0,0.347565]
[1734110171792,0.050463,101090.0,101080.0,0.347565]
[1734110172188,0.051463,101090.0,101080.0,0.354565]
[1734110172391,0.14564727,101090.0,101080.0,0.354565]
[1734110172590,0.60254727,101090.0,101080.0,0.014]
[1734110172993,0.69934727,101090.0,101080.0,0.014]
[1734110174798,0.049473,101070.0,101060.0,1.43825799]
[1734110175104,0.049473,101070.0,101060.0,0.23825799]
[1734110175105,0.50445727,101070.0,101060.0,0.23825799]
[1734110175898,0.50545727,101070.0,101060.0,0.24525799]
[1734110176497,0.411273,101070.0,101060.0,0.24525799]
[1734110176696,0.3618,101070.0,101060.0,0.24525799]
[1734110176999,0.002,101070.0,101060.0,0.70524226]
[1734110177197,0.002,101070.0,101060.0,1.20524226]
[1734110177393,0.002,101070.0,101060.0,2.57938915]
[1734110177599,0.002,101070.0,101060.0,1.90524226]
[1734110178402,0.42092166,101090.0,101060.0,1.90524226]
[1734110178705,0.51510593,101090.0,101080.0,0.049468]
[1734110179306,0.049471,101080.0,101070.0,0.04947]
[1734110179604,0.50445527,101080.0,101070.0,0.04947]
[1734110180501,0.410271,101080.0,101070.0,0.04947]
[1734110180703,0.049471,101080.0,101070.0,0.04947]
[1734110181006,0.001,101080.0,101070.0,0.41527]
[1734110181197,0.002,101080.0,101070.0,1.01545427]
[1734110181598,0.002,101080.0,101070.0,0.51545427]
[1734110181900,0.002,101080.0,101070.0,1.01545427]
[1734110182504,0.002,101080.0,101070.0,1.18960116]
[1734110184604,0.002,101080.0,101070.0,1.15346585]
[1734110184804,0.051468,101080.0,101070.0,0.42127]
[1734110185007,0.002,101080.0,101070.0,0.42127]
[1734110185511,0.002,101080.0,101070.0,1.79568759]
[1734110185902,0.002,101080.0,101070.0,0.59568759]
[1734110186204,0.002,101080.0,101070.0,1.18987186]
[1734110186404,0.002,101080.0,101070.0,2.38987186]
[1734110187197,0.002,101080.0,101070.0,1.88987186]
[1734110188107,0.002,101080.0,101070.0,1.86058759]
[1734110188911,0.002,101080.0,101070.0,2.45477186]
[1734110189408,0.002,101080.0,101070.0,2.68696771]
[1734110190409,0.10018399,101120.0,101110.0,0.049453]
[1734110190616,0.50591626,101120.0,101100.0,0.22397359]
[1734110190909,0.14363727,101110.0,101100.0,0.125457]
[1734110191108,0.09418427,101110.0,101100.0,0.125457]
[1734110191314,0.57621826,101120.0,101110.0,0.049453]
[1734110191512,0.43258399,101120.0,101110.0,0.050453]
[1734110191707,0.45041792,101120.0,101110.0,0.050453]
[1734110191914,0.45241792,101120.0,101110.0,0.050453]
[1734110192219,0.49436592,101120.0,101110.0,0.049453]
[1734110192609,0.58855019,101120.0,101110.0,0.049453]
[1734110193009,0.37561792,101120.0,101110.0,0.049453]
[1734110193315,0.01481792,101120.0,101110.0,0.50443727]
[1734110193513,0.00398399,101120.0,101110.0,0.67895386]
[1734110193711,0.00398399,101120.0,101110.0,1.17895386]
[1734110194108,0.00348399,101120.0,101110.0,1.17895386]
[1734110194315,0.00848399,101120.0,101110.0,1.41264265]
[1734110194822,0.00448399,101120.0,101110.0,1.41164265]
[1734110195117,0.00498399,101120.0,101110.0,1.41164265]
[1734110195811,0.0035,101120.0,101110.0,1.31745838]
[1734110196008,0.0035,101120.0,101110.0,0.81745838]
[1734110196220,0.09768427,101120.0,101110.0,0.410253]
[1734110196610,0.0035,101120.0,101110.0,0.410253]
[1734110198224,0.052948,101120.0,101110.0,0.410253]
[1734110198413,0.21023227,101120.0,101110.0,0.410253]
[1734110198609,0.57103227,101120.0,101110.0,0.049453]
[1734110198831,0.57103227,101120.0,101100.0,0.076]
[1734110199120,0.15246242,101110.0,101100.0,0.125455]
[1734110199329,0.049453,101110.0,101100.0,0.125455]
[1734110200119,0.049453,101110.0,101100.0,0.049455]
[1734110200720,0.55119147,101110.0,101100.0,0.049455]
[1734110200922,0.55119147,101110.0,101100.0,0.051455]
[1734110201121,0.410253,101110.0,101100.0,0.052455]
[1734110201518,0.410253,101110.0,101100.0,0.050455]
[1734110202824,0.049458,101100.0,101090.0,0.049462]
[1734110203025,0.63179647,101100.0,101090.0,0.049462]
[1734110203526,0.490858,101100.0,101090.0,0.049462]
[1734110204230,0.490858,101100.0,101090.0,0.051462]
[1734110204617,0.490858,101100.0,101090.0,0.052462]
[1734110206523,0.57954215,101100.0,101090.0,0.052462]
[1734110210424,0.08868415,101100.0,101090.0,0.55420047]
[1734110210624,0.5096151,101110.0,101100.0,0.049458]
[1734110211027,0.0993611,101110.0,101100.0,0.19039647]
[1734110211330,0.01067695,101110.0,101100.0,0.55119647]
[1734110211523,0.08240857,101120.0,101100.0,0.80231306]
[1734110211723,0.0631,101120.0,101110.0,0.410253]
[1734110211934,0.0631,101120.0,101110.0,0.476253]
[1734110212133,0.0636,101120.0,101110.0,0.476253]
[1734110213029,0.0631,101120.0,101110.0,0.476253]
[1734110213232,0.63326034,101130.0,101120.0,0.049448]
[1734110213233,0.08868415,101130.0,101120.0,0.049448]
[1734110213422,0.08868415,101130.0,101120.0,0.410248]
[1734110213826,0.68785861,101140.0,101130.0,0.049443]
[1734110213827,0.61305861,101140.0,101130.0,0.049443]
[1734110214034,0.23303198,101140.0,101130.0,0.049443]
[1734110214622,0.59383198,101140.0,101130.0,0.049443]
[1734110214833,0.77342687,101140.0,101130.0,0.001]
[1734110215032,0.77342687,101140.0,101130.0,0.050443]
[1734110215436,0.6324884,101140.0,101130.0,0.050443]
[1734110215630,0.72109353,101140.0,101130.0,0.050443]
[1734110216436,0.24501734,101140.0,101130.0,0.411243]
[1734110216641,0.10697121,101140.0,101130.0,0.411243]
[1734110217539,0.15640921,101140.0,101130.0,0.411243]
[1734110217940,0.74675281,101140.0,101130.0,0.001]
[1734110218136,0.865029,101140.0,101130.0,0.001]
[1734110218838,0.92426911,101140.0,101130.0,0.001]
[1734110220141,0.92476911,101140.0,101130.0,0.001]
[1734110220845,0.56396911,101140.0,101130.0,0.050443]
[1734110221144,1.2380379,101140.0,101130.0,0.050443]
[1734110222030,1.2385379,101140.0,101130.0,0.050443]
[1734110222432,1.09069266,101140.0,101130.0,0.050443]
[1734110222632,1.2385379,101140.0,101130.0,0.050443]
[1734110222934,1.09069266,101140.0,101130.0,0.001]
[1734110223141,1.09019266,101140.0,101130.0,0.001]
[1734110223337,1.2380379,101140.0,101130.0,0.001]
[1734110224144,1.2385379,101140.0,101130.0,0.001]
[1734110224847,0.049448,101120.0,101090.0,1.02266838]
[1734110225048,0.410258,101100.0,101090.0,0.112763]
[1734110225446,0.59278695,101100.0,101090.0,0.0633]
[1734110225840,0.59278695,101100.0,101090.0,0.112763]
[1734110226145,0.49887969,101100.0,101090.0,0.113263]
[1734110226844,0.410258,101100.0,101090.0,0.117263]
[1734110227041,0.410258,101100.0,101090.0,0.116763]
[1734110227649,0.411258,101100.0,101090.0,0.121763]
[1734110227848,0.64084597,101100.0,101090.0,0.058463]
[1734110228148,0.64084597,101100.0,101090.0,0.058963]
[1734110228643,0.64084597,101100.0,101090.0,0.0095]
[1734110228856,0.76968566,101100.0,101090.0,0.0095]
[1734110229144,0.82876679,101100.0,101090.0,0.009]
[1734110229649,0.049468,101080.0,101070.0,0.11447]
[1734110229843,0.410268,101080.0,101070.0,0.11447]
[1734110230850,0.049468,101080.0,101070.0,0.11447]
[1734110231043,0.049468,101080.0,101070.0,0.47527]
[1734110231238,0.050468,101080.0,101070.0,0.47727]
[1734110231439,0.001,101080.0,101070.0,0.47727]
[1734110231645,0.002,101080.0,101070.0,0.48227]
[1734110232444,0.002,101080.0,101070.0,1.29775287]
[1734110232640,0.06013744,101100.0,101090.0,0.049463]
[1734110232846,0.42093744,101100.0,101090.0,0.049463]
[1734110233048,0.42093744,101100.0,101090.0,0.049963]
[1734110233353,0.06013744,101100.0,101090.0,0.049963]
[1734110233554,0.01067744,101100.0,101090.0,0.410763]
[1734110233753,0.05094032,101110.0,101100.0,0.049458]
[1734110233951,0.00148432,101110.0,101100.0,0.410258]
[1734110234162,0.06907149,101120.0,101110.0,0.049453]
[1734110234453,0.06907149,101120.0,101110.0,1.610253]
[1734110234644,0.07980527,101120.0,101110.0,0.410253]
[1734110234848,0.07980527,101120.0,101110.0,0.049453]
[1734110235043,0.01073378,101120.0,101110.0,0.410253]
[1734110235350,0.63695848,101140.0,101120.0,0.049448]
[1734110235547,0.51879623,101140.0,101130.0,0.049443]
[1734110235745,0.049443,101130.0,101120.0,0.115045]
[1734110236642,0.47835623,101140.0,101130.0,0.049443]
[1734110236643,0.52779723,101140.0,101130.0,0.049443]
[1734110236949,0.16699723,101140.0,101130.0,0.049443]
[1734110237258,0.07838242,101140.0,101130.0,0.049443]
[1734110237645,0.09321088,101140.0,101130.0,0.049443]
[1734110238148,0.08421088,101140.0,101130.0,0.049443]
[1734110238745,0.09321088,101140.0,101130.0,0.049443]
[1734110239151,0.09271088,101140.0,101130.0,0.049443]
[1734110240159,0.09321088,101140.0,101130.0,0.049443]
[1734110241257,0.59447716,101140.0,101130.0,0.049443]
[1734110241455,0.68309197,101140.0,101130.0,0.049443]
[1734110241960,0.54212569,101140.0,101130.0,0.049443]
[1734110242160,0.54262569,101140.0,101130.0,0.049443]
[1734110242358,0.049443,101130.0,101120.0,0.475845]
[1734110242555,0.54262569,101140.0,101130.0,0.049443]
[1734110243151,0.54212569,101140.0,101130.0,0.049443]
[1734110243765,0.53812569,101140.0,101130.0,0.049443]
[1734110244176,0.53862569,101140.0,101130.0,0.049443]
[1734110244775,0.54262569,101140.0,101130.0,0.049443]
[1734110245273,0.54212569,101140.0,101130.0,0.049443]
[1734110246178,0.54262569,101140.0,101130.0,0.049443]
[1734110247172,0.049443,101130.0,101120.0,0.115046]
[1734110247379,0.55120928,101130.0,101120.0,0.115046]
[1734110247676,0.55120928,101130.0,101120.0,0.049446]
[1734110247873,0.049448,101120.0,101100.0,0.24110011]
[1734110248072,0.41909076,101110.0,101100.0,0.11604052]
[1734110248273,0.410253,101110.0,101100.0,0.11554052]
[1734110248470,0.68102606,101120.0,101110.0,0.049453]
[1734110248666,0.50186081,101130.0,101120.0,0.049448]
[1734110248865,0.413246,101130.0,101120.0,0.049448]
[1734110249068,0.052446,101130.0,101120.0,0.049448]
[1734110249274,0.060446,101130.0,101120.0,0.049448]
[1734110249665,0.052446,101130.0,101120.0,0.410248]
[1734110250172,0.049446,101130.0,101120.0,0.410248]
[1734110250374,0.057446,101130.0,101120.0,0.410248]
[1734110250973,0.060446,101130.0,101120.0,0.50415076]
[1734110251183,0.060446,101130.0,101120.0,0.410248]
[1734110251672,0.060446,101130.0,101120.0,0.049448]
[1734110252666,0.060446,101130.0,101120.0,0.410248]
[1734110252873,0.060446,101130.0,101120.0,0.049448]
[1734110253066,0.421246,101130.0,101120.0,0.049448]
[1734110253770,0.060446,101130.0,101120.0,0.410248]
[1734110255166,0.060446,101130.0,101120.0,0.049448]
[1734110255369,0.421246,101130.0,101120.0,0.049448]
[1734110257885,0.50980721,101130.0,101120.0,0.049448]
[1734110260082,0.14900721,101130.0,101120.0,0.049448]
[1734110261581,0.62788882,101130.0,101120.0,0.049448]
[1734110262579,0.53932761,101130.0,101120.0,0.049448]
[1734110263388,0.68692962,101130.0,101120.0,0.049448]
[1734110263684,0.68692962,101130.0,101120.0,0.22406195]
[1734110264781,0.049448,101120.0,101110.0,0.51828155]
[1734110264985,0.25684368,101120.0,101110.0,0.51828155]
[1734110266082,0.25784368,101120.0,101110.0,0.51828155]
[1734110266482,0.26184368,101120.0,101110.0,0.51828155]
[1734110267287,0.26184368,101120.0,101110.0,0.51778155]
[1734110268474,0.68634368,101120.0,101110.0,0.45688155]
[1734110268681,0.76739731,101120.0,101100.0,0.52294855]
[1734110268878,0.68522855,101110.0,101100.0,0.28916995]
[1734110269184,0.67638673,101110.0,101100.0,0.28866995]
[1734110269581,0.67638673,101110.0,101100.0,0.114056]
[1734110269882,0.67638673,101110.0,101100.0,0.115056]
[1734110270278,0.67638673,101110.0,101100.0,0.115556]
[1734110270583,0.67638673,101110.0,101100.0,0.0015]
[1734110270784,0.69870231,101110.0,101100.0,0.0015]